bitfinex-derivatives/quotes_SOLF0:USTF0_20250111
["timestamp","ask_amount","ask_price","bid_price","bid_amount"]
[1736587902294,9.8877703,186.09,186.04,2.6882]
[1736587902494,2.6875,186.09,186.04,2.6882]
[1736587903201,2.6874,186.1,186.05,2.688]
[1736587903791,2.6875,186.09,186.03,9.8884703]
[1736587905393,2.6875,186.09,186.04,2.6882]
[1736587905596,180.64478893,186.16,186.07,7.2002703]
[1736587905799,180.64478893,186.16,186.11,7.2002703]
[1736587905994,154.83938437,186.16,186.11,7.2002703]
[1736587906406,149.45738437,186.16,186.11,7.2002703]
[1736587907310,61.77833303,186.17,186.12,2.687]
[1736587907503,15.2684703,186.18,186.12,2.687]
[1736587907705,9.8864703,186.18,186.13,7.2002703]
[1736587909210,9.8862703,186.2,186.14,2.6867]
[1736587909506,9.8862703,186.2,186.15,7.2002703]
[1736587915715,9.8858703,186.23,186.17,7.2002703]
[1736587916110,7.2002703,186.23,186.17,7.2002703]
[1736587916317,7.2002703,186.21,186.16,2.6865]
[1736587917621,7.2002703,186.23,186.18,2.6862]
[1736587918314,9.8857703,186.23,186.17,9.8865703]
[1736587920119,2.6856,186.22,186.17,7.2002703]
[1736587922117,2.6856,186.22,186.17,9.8865703]
[1736587922718,2.686,186.2,186.14,7.2002703]
[1736587923320,2.686,186.2,186.14,9.8868703]
[1736587924024,7.2002703,186.21,186.08,5.4]
[1736587924215,2.6862,186.18,186.13,7.2002703]
[1736587925621,2.6865,186.16,186.1,2.6872]
[1736587925820,2.6865,186.16,186.12,7.2002703]
[1736587928025,7.2002703,186.19,186.12,7.2002703]
[1736587928215,2.6862,186.18,186.14,9.8870703]
[1736587928824,9.8863703,186.19,186.14,9.8870703]
[1736587929230,3.1786,186.24,186.16,9.8867703]
[1736587929529,7.2002703,186.23,186.16,7.2002703]
[1736587930821,3.1786,186.24,186.18,9.8863703]
[1736587932129,2.6855,186.23,186.18,9.8863703]
[1736587935227,1.5916,186.27,186.18,9.8863703]
[1736587935433,9.8855703,186.25,186.18,9.8863703]
[1736587936230,9.8855703,186.25,186.19,2.686]
[1736587937633,4.2765,186.27,186.21,2.6856]
[1736587937833,4.2765,186.27,186.22,7.2002703]
[1736587938333,2.6849,186.27,186.22,9.8858703]
[1736587939643,2.6849,186.27,186.22,7.2002703]
[1736587941543,68.93904888,186.28,186.22,9.8858703]
[1736587942439,71.62384888,186.28,186.22,9.8858703]
[1736587943841,149.45738437,186.29,186.24,9.8855703]
[1736587944039,149.45738437,186.29,186.24,7.2002703]
[1736587944344,152.14198437,186.29,186.24,7.2002703]
[1736587945242,2.6846,186.29,186.24,9.8855703]
[1736587948547,149.45738437,186.31,186.27,2.6848]
[1736587949352,9.8842703,186.33,186.27,2.6848]
[1736587952547,7.2002703,186.33,186.27,7.2002703]
[1736587952748,2.6845,186.3,186.24,2.6853]
[1736587953047,7.2002703,186.31,186.25,7.2002703]
[1736587953857,9.8846703,186.31,186.25,7.2002703]
[1736587954058,2.6844,186.31,186.25,9.8853703]
[1736587954357,2.6844,186.31,186.27,7.2002703]
[1736587955659,9.8843703,186.33,186.27,9.8851703]
[1736587955860,2.6841,186.33,186.27,7.2002703]
[1736587957155,2.6841,186.33,186.29,7.2002703]
[1736587958159,2.6842,186.32,186.29,7.2002703]
[1736587958564,2.6842,186.32,186.27,9.8851703]
[1736587959061,2.6841,186.33,186.29,7.2002703]
[1736587961562,2.6841,186.33,186.28,2.6847]
[1736587961764,2.6841,186.33,186.29,7.2002703]
[1736587963263,7.2002703,186.35,186.29,7.2002703]
[1736587963464,2.6839,186.34,186.29,7.2002703]
[1736587965468,2.6838,186.35,186.3,2.6845]
[1736587965766,2.6838,186.35,186.31,7.2002703]
[1736587968568,159.32516244,186.37,186.31,7.2002703]
[1736587968569,152.12489214,186.37,186.31,7.2002703]
[1736587968769,151.54739214,186.37,186.31,7.2002703]
[1736587969471,148.86379214,186.37,186.33,7.2002703]
[1736587969672,148.86379214,186.39,186.35,7.2002703]
[1736587970371,148.86379214,186.4,186.35,7.2002703]
[1736587971074,2.6834,186.38,186.35,7.2002703]
[1736587972467,148.86379214,186.38,186.35,7.2002703]
[1736587972663,148.86379214,186.38,186.37,9.8837703]
[1736587973972,174.63493763,186.42,186.37,9.8837703]
[1736587974171,174.63493763,186.42,186.41,7.2002703]
[1736587974673,2.6827,186.42,186.41,7.2002703]
[1736587976675,2.6827,186.42,186.39,7.2002703]
[1736587977677,2.6827,186.42,186.33,4.8168]
[1736587977875,2.6827,186.42,186.39,7.2002703]
[1736587979275,379.35975065,186.45,186.33,4.8168]
[1736587979480,379.35975065,186.45,186.37,7.2002703]
[1736587979481,2.683,186.4,186.37,7.2002703]
[1736587980981,2.6828,186.42,186.37,7.2002703]
[1736587984881,2.6826,186.44,186.39,7.2002703]
[1736587985977,2.6826,186.43,186.39,7.2002703]
[1736587987783,2.6827,186.42,186.39,7.2002703]
[1736587988985,7.2002703,186.41,186.33,4.8168]
[1736587989179,7.2002703,186.37,186.28,4.8126]
[1736587989385,7.2002703,186.37,186.3,7.2002703]
[1736587991088,2.6838,186.35,186.3,7.2002703]
[1736587993387,7.2002703,186.35,186.27,2.6848]
[1736587993589,7.2002703,186.35,186.27,7.2002703]
[1736587993983,2.6843,186.31,186.24,2.6853]
[1736587994189,7.2002703,186.33,186.26,7.2002703]
[1736587994386,7.2002703,186.31,186.2,5.4]
[1736587994586,2.6849,186.27,186.21,2.6857]
[1736587994793,2.6849,186.27,186.23,7.2002703]
[1736587995092,7.2002703,186.31,186.23,7.2002703]
[1736587996289,2.6842,186.32,186.27,7.2002703]
[1736587996593,7.2002703,186.33,186.27,7.2002703]
[1736587997692,2.6845,186.3,186.27,7.2002703]
[1736587998794,2.6842,186.32,186.27,7.2002703]
[1736587999691,8.084,186.34,186.29,7.2002703]
[1736588000682,2.684,186.33,186.29,7.2002703]
[1736588001595,2.6843,186.32,186.27,7.2002703]
[1736588001792,5.4,186.34,186.27,7.2002703]
[1736588002290,7.2002703,186.33,186.27,7.2002703]
[1736588003095,2.6844,186.31,186.27,7.2002703]
[1736588003283,5.4,186.34,186.27,7.2002703]
[1736588003587,5.4,186.34,186.29,7.2002703]
[1736588004093,2.6842,186.32,186.29,7.2002703]
[1736588006295,2.684,186.33,186.29,7.2002703]
[1736588010198,2.6839,186.35,186.29,7.2002703]
[1736588010398,2.6839,186.35,186.31,7.2002703]
[1736588013697,2.6839,186.34,186.26,5.8858]
[1736588013899,7.2002703,186.35,186.28,7.2002703]
[1736588014397,2.6842,186.33,186.28,7.2002703]
[1736588016203,2.6838,186.35,186.3,7.2002703]
[1736588017601,2.6838,186.35,186.32,7.2002703]
[1736588021707,2.6835,186.37,186.32,7.2002703]
[1736588028908,2.6835,186.37,186.32,9.8843703]
[1736588033912,7.2002703,186.39,186.32,7.2002703]
[1736588034118,2.6836,186.36,186.32,7.2002703]
[1736588040525,2.6833,186.38,186.33,2.684]
[1736588040824,181.86566532,186.41,186.34,7.2002703]
[1736588041824,7.2002703,186.41,186.34,7.2002703]
[1736588042123,2.6832,186.39,186.34,9.8841703]
[1736588050333,2.6832,186.39,186.34,2.6839]
[1736588050534,7.2002703,186.39,186.26,3.2008]
[1736588050831,174.69573703,186.41,186.26,3.2008]
[1736588050832,7.2002703,186.37,186.26,3.2008]
[1736588051032,7.2002703,186.37,186.3,7.2002703]
[1736588051935,2.6838,186.35,186.3,7.2002703]
[1736588053241,2.684,186.33,186.29,2.6846]
[1736588053436,2.684,186.33,186.26,3.2008]
[1736588053735,2.684,186.33,186.27,7.2002703]
[1736588055132,2.684,186.33,186.28,2.6847]
[1736588059240,7.2002703,186.31,186.24,7.2002703]
[1736588059441,7.2002703,186.29,186.22,7.2002703]
[1736588060439,7.2002703,186.29,186.24,7.2002703]
[1736588061240,9.8848703,186.29,186.24,7.2002703]
[1736588061730,2.6846,186.29,186.24,7.2002703]
[1736588063041,7.2002703,186.31,186.24,7.2002703]
[1736588063341,2.6845,186.3,186.24,9.8855703]
[1736588063841,2.684,186.33,186.28,7.2002703]
[1736588069146,2.6839,186.34,186.28,9.8849703]
[1736588070948,7.2002703,186.37,186.3,7.2002703]
[1736588071149,181.89600733,186.39,186.32,7.2002703]
[1736588072251,2.6833,186.38,186.32,9.8844703]
[1736588073651,7.2002703,186.39,186.32,9.8844703]
[1736588073851,2.6835,186.37,186.32,9.8844703]
[1736588077350,7.2002703,186.39,186.34,7.2002703]
[1736588077555,7.2002703,186.41,186.34,9.8841703]
[1736588078257,25.77418853,186.43,186.36,7.2002703]
[1736588078558,7.2002703,186.43,186.36,7.2002703]
[1736588080257,2.6829,186.41,186.36,7.2002703]
[1736588084954,2.6827,186.43,186.37,2.6834]
[1736588085160,2.6827,186.43,186.38,7.2002703]
[1736588086161,2.6831,186.4,186.36,7.2002703]
[1736588088258,7.2002703,186.41,186.27,4.8004]
[1736588088463,7.2002703,186.39,186.34,7.2002703]
[1736588088667,60.08097511,186.44,186.34,7.2002703]
[1736588088861,2.6834,186.38,186.34,7.2002703]
[1736588089455,2.6836,186.36,186.27,10.2004]
[1736588089662,7.2002703,186.4,186.33,7.2002703]
[1736588091067,2.6833,186.38,186.33,9.8842703]
[1736588093561,9.8834703,186.4,186.33,9.8842703]
[1736588093966,9.8834703,186.4,186.33,7.2002703]
[1736588094159,9.8834703,186.4,186.34,2.6839]
[1736588094466,7.2002703,186.4,186.34,9.8841703]
[1736588094663,2.6832,186.39,186.34,9.8841703]
[1736588095468,5.377,186.44,186.36,7.2002703]
[1736588095664,2.6827,186.42,186.36,9.8838703]
[1736588096169,7.2002703,186.43,186.36,7.2002703]
[1736588097662,2.683,186.41,186.36,7.2002703]
[1736588100259,2.6832,186.39,186.33,2.6839]
[1736588100460,2.6832,186.39,186.34,7.2002703]
[1736588101266,7.2002703,186.37,186.27,4.8004]
[1736588101467,7.2002703,186.37,186.29,7.2002703]
[1736588103069,2.6839,186.34,186.29,7.2002703]
[1736588103370,7.2002703,186.35,186.29,7.2002703]
[1736588103866,2.684,186.33,186.29,7.2002703]
[1736588106565,7.2002703,186.35,186.29,7.2002703]
[1736588106870,7.2002703,186.33,186.25,7.2002703]
[1736588107063,15.565,186.38,186.25,7.2002703]
[1736588107064,7.2002703,186.31,186.25,7.2002703]
[1736588107371,2.6846,186.29,186.25,7.2002703]
[1736588109971,5.377,186.37,186.27,7.2002703]
[1736588110273,7.2002703,186.35,186.29,7.2002703]
[1736588111075,2.6839,186.34,186.29,7.2002703]
[1736588111876,2.6841,186.33,186.29,7.2002703]
[1736588113476,2.6841,186.33,186.27,9.8851703]
[1736588113675,2.6842,186.32,186.27,7.2002703]
[1736588113880,7.2002703,186.39,186.31,7.2002703]
[1736588114481,2.6836,186.37,186.31,7.2002703]
[1736588114680,7.2002703,186.39,186.31,7.2002703]
[1736588116082,2.6836,186.36,186.31,7.2002703]
[1736588119291,2.6831,186.4,186.33,9.8842703]
[1736588119482,2.6831,186.4,186.35,7.2002703]
[1736588122579,2.6828,186.42,186.37,7.2002703]
[1736588125785,2.6826,186.43,186.39,7.2002703]
[1736588131989,2.6824,186.44,186.39,7.2002703]
[1736588133489,7.2002703,186.46,186.39,7.2002703]
[1736588133684,9.8825703,186.46,186.39,7.2002703]
[1736588135091,9.8825703,186.46,186.4,2.683]
[1736588135589,2.6823,186.45,186.4,2.683]
[1736588135792,2.6823,186.45,186.39,9.8834703]
[1736588139295,2.6826,186.43,186.39,7.2002703]
[1736588140897,2.6828,186.42,186.38,7.2002703]
[1736588143099,2.6827,186.43,186.38,7.2002703]
[1736588143491,7.2002703,186.46,186.4,7.2002703]
[1736588144101,2.6825,186.44,186.28,3.3036]
[1736588144299,7.2002703,186.46,186.38,7.2002703]
[1736588145203,2.6826,186.43,186.38,7.2002703]
[1736588145599,9.8824703,186.47,186.4,9.8832703]
[1736588146506,7.2002703,186.47,186.4,9.8832703]
[1736588146803,2.6822,186.46,186.4,9.8832703]
[1736588147400,2.6825,186.44,186.4,7.2002703]
[1736588148002,2.6822,186.46,186.4,9.8832703]
[1736588156505,2.6823,186.45,186.4,2.683]
[1736588156703,2.6823,186.45,186.4,9.8832703]
[1736588159408,151.54609214,186.45,186.4,9.8832703]
[1736588161019,2.6825,186.44,186.4,7.2002703]
[1736588164217,2.6825,186.44,186.29,199.4]
[1736588164218,148.86379214,186.45,186.38,7.2002703]
[1736588166010,148.86379214,186.44,186.38,7.2002703]
[1736588166216,2.6828,186.42,186.38,7.2002703]
[1736588170419,7.2002703,186.45,186.35,2.6836]
[1736588170619,7.2002703,186.43,186.37,7.2002703]
[1736588170919,2.6831,186.4,186.37,7.2002703]
[1736588172112,7.2002703,186.43,186.37,7.2002703]
[1736588172318,2.6829,186.41,186.37,7.2002703]
[1736588181825,156.06406244,186.43,186.35,7.2002703]
[1736588182031,7.2002703,186.41,186.33,2.684]
[1736588182233,7.2002703,186.41,186.34,7.2002703]
[1736588182531,2.6832,186.39,186.34,7.2002703]
[1736588183127,2.6833,186.38,186.34,7.2002703]
[1736588187532,7.2002703,186.41,186.3,29.96621261]
[1736588187737,2.6839,186.35,186.31,7.2002703]
[1736588187933,7.2002703,186.37,186.29,11.79284566]
[1736588188237,2.6842,186.33,186.29,11.79284566]
[1736588189338,2.6842,186.32,186.29,7.2002703]
[1736588189534,7.2002703,186.35,186.27,7.2002703]
[1736588189739,7.2002703,186.31,186.22,4.9042]
[1736588189940,7.2002703,186.31,186.24,7.2002703]
[1736588191240,2.6849,186.27,186.24,7.2002703]
[1736588191940,2.6851,186.26,186.19,2.686]
[1736588192147,2.6851,186.26,186.22,7.2002703]
[1736588192645,2.6851,186.26,186.19,2.686]
[1736588192846,2.6851,186.26,186.21,7.2002703]
[1736588193243,2.6855,186.23,186.16,7.5025]
[1736588193443,2.6855,186.23,186.19,7.2002703]
[1736588193643,7.2002703,186.27,186.19,7.2002703]
[1736588193844,2.6856,186.22,186.19,7.2002703]
[1736588194343,2.6855,186.24,186.19,7.2002703]
[1736588195449,2.6855,186.23,186.19,7.2002703]
[1736588196750,2.6851,186.26,186.19,7.2002703]
[1736588198350,2.6852,186.25,186.19,7.2002703]
[1736588203554,2.6853,186.24,186.19,7.2002703]
[1736588207850,2.6852,186.26,186.19,9.8862703]
[1736588208058,2.6852,186.26,186.21,7.2002703]
[1736588208453,2.6852,186.26,186.16,4.8161]
[1736588208654,2.6852,186.26,186.21,7.2002703]
[1736588210057,2.6852,186.25,186.21,7.2002703]
[1736588210459,2.6853,186.24,186.18,2.6862]
[1736588210656,7.2002703,186.24,186.16,4.8161]
[1736588210857,7.2002703,186.24,186.17,7.2002703]
[1736588211058,2.6857,186.22,186.17,7.2002703]
[1736588211257,2.6857,186.22,186.16,4.8161]
[1736588211258,7.2002703,186.24,186.16,12.0163703]
[1736588211457,26.887,186.31,186.18,7.2002703]
[1736588211658,7.2002703,186.25,186.18,7.2002703]
[1736588212158,2.6856,186.23,186.18,7.2002703]
[1736588212954,7.2002703,186.27,186.2,7.2002703]
[1736588213156,2.6853,186.25,186.2,7.2002703]
[1736588213660,7.2002703,186.27,186.2,7.2002703]
[1736588213861,2.6853,186.24,186.2,7.2002703]
[1736588236473,148.86379214,186.28,186.2,7.2002703]
[1736588236668,148.86379214,186.28,186.22,7.2002703]
[1736588237780,186.07974018,186.29,186.22,7.2002703]
[1736588237781,7.2002703,186.3,186.22,7.2002703]
[1736588238071,2.685,186.26,186.22,7.2002703]
[1736588244772,7.2002703,186.28,186.16,4.8161]
[1736588244978,2.6855,186.24,186.2,7.2002703]
[1736588250877,2.6855,186.24,186.19,2.686]
[1736588251077,2.6855,186.24,186.19,9.8862703]
[1736588252082,2.685,186.27,186.21,9.8860703]
[1736588261088,2.685,186.27,186.21,2.6858]
[1736588261389,2.685,186.27,186.22,7.2002703]
[1736588263888,2.6853,186.25,186.19,2.686]
[1736588264086,2.6853,186.25,186.2,7.2002703]
[1736588266090,2.6853,186.25,186.2,9.8861703]
[1736588267086,2.6853,186.25,186.2,7.2002703]
[1736588274392,7.2002703,186.27,186.16,4.8161]
[1736588274595,2.6855,186.23,186.18,9.8864703]
[1736588278798,2.6853,186.24,186.2,9.8861703]
[1736588279099,5.376,186.26,186.22,7.2002703]
[1736588279598,5.376,186.28,186.22,7.2002703]
[1736588280099,7.2002703,186.29,186.22,7.2002703]
[1736588280100,5.376,186.26,186.23,2.6854]
[1736588280697,5.376,186.26,186.22,7.2002703]
[1736588280902,5.376,186.26,186.22,9.8858703]
[1736588281998,5.376,186.27,186.22,9.8858703]
[1736588283298,148.86379214,186.31,186.22,7.2002703]
[1736588283605,5.376,186.31,186.26,7.2002703]
[1736588284302,7.2002703,186.3,186.24,7.2002703]
[1736588284502,2.6846,186.29,186.24,7.2002703]
[1736588285000,2.6846,186.29,186.23,2.6855]
[1736588286496,2.6846,186.29,186.22,7.2002703]
[1736588286702,9.8850703,186.28,186.22,7.2002703]
[1736588286902,9.8850703,186.28,186.2,7.2002703]
[1736588287905,7.2002703,186.28,186.16,4.8161]
[1736588288099,2.6849,186.27,186.21,2.6857]
[1736588289204,2.6849,186.27,186.2,7.2002703]
[1736588289408,2.6849,186.27,186.2,9.8861703]
[1736588289905,9.8851703,186.27,186.2,9.8861703]
[1736588291205,2.685,186.26,186.2,9.8861703]
[1736588292213,9.8854703,186.25,186.2,7.2002703]
[1736588293108,7.2002703,186.25,186.18,9.8864703]
[1736588293314,7.2002703,186.23,186.16,12.0163703]
[1736588293611,9.8858703,186.23,186.16,12.0163703]
[1736588293804,9.8858703,186.23,186.16,14.7027703]
[1736588294618,2.6857,186.22,186.16,7.5025]
[1736588294913,7.2002703,186.21,186.14,9.8868703]
[1736588295713,2.6859,186.2,186.15,2.6866]
[1736588297814,2.6859,186.2,186.14,7.2002703]
[1736588298517,2.6859,186.2,186.12,2.687]
[1736588298814,2.6859,186.2,186.14,7.2002703]
[1736588300114,2.6859,186.2,186.14,9.8870703]
[1736588306416,7.2002703,186.21,186.14,7.2002703]
[1736588306622,9.8860703,186.21,186.15,2.6866]
[1736588307821,5.376,186.22,186.18,7.2002703]
[1736588308722,7.2002703,186.25,186.18,7.2002703]
[1736588308923,5.376,186.27,186.2,7.2002703]
[1736588309123,372.15948035,186.29,186.24,7.2002703]
[1736588309424,372.15948035,186.29,186.24,9.8855703]
[1736588310125,5.376,186.3,186.24,9.8855703]
[1736588310825,5.376,186.3,186.24,7.2002703]
[1736588310826,2.6845,186.3,186.24,7.2002703]
[1736588313628,2.6849,186.27,186.22,7.2002703]
[1736588318433,9.8850703,186.28,186.22,7.2002703]
[1736588319328,7.2002703,186.28,186.22,7.2002703]
[1736588319524,2.6849,186.27,186.22,7.2002703]
[1736588324635,5.376,186.29,186.22,9.8857703]
[1736588325037,8.0607,186.29,186.22,9.8857703]
[1736588325437,5.376,186.29,186.22,9.8857703]
[1736588327234,2.6848,186.28,186.22,9.8857703]
[1736588340746,2.6849,186.27,186.22,9.8857703]
[1736588342445,7.2002703,186.28,186.2,7.2002703]
[1736588342843,2.6856,186.22,186.2,7.2002703]
[1736588343738,2.6855,186.23,186.2,7.2002703]
[1736588344746,2.6857,186.22,186.18,7.2002703]
[1736588344949,7.2002703,186.22,186.16,8.8583703]
[1736588345643,2.6858,186.21,186.16,8.8583703]
[1736588346547,7.2002703,186.22,186.16,8.8583703]
[1736588346851,9.8858703,186.22,186.16,8.8583703]
[1736588347150,5.376,186.25,186.18,7.2002703]
[1736588347151,7.2002703,186.24,186.18,7.2002703]
[1736588347943,5.376,186.25,186.18,7.2002703]
[1736588348751,7.2002703,186.26,186.21,2.6857]
[1736588351051,8.0607,186.29,186.22,9.8858703]
[1736588353555,15.2609703,186.29,186.22,9.8858703]
[1736588354355,15.2609703,186.29,186.23,2.6855]
[1736588355056,8.0607,186.29,186.23,2.6855]
[1736588355256,8.0605,186.3,186.24,7.2002703]
[1736588358453,8.0605,186.3,186.24,9.8854703]
[1736588358958,8.0605,186.3,186.16,7.0581]
[1736588358959,158.74826244,186.33,186.27,2.6849]
[1736588359550,9.8844703,186.33,186.27,2.6849]
[1736588360054,28.52038948,186.34,186.28,7.2002703]
[1736588360356,2.6839,186.34,186.28,7.2002703]
[1736588361058,2.6839,186.34,186.28,9.8849703]
[1736588362459,66.79665149,186.35,186.3,7.2002703]
[1736588364160,69.48045149,186.35,186.3,7.2002703]
[1736588364759,62.28018119,186.35,186.3,7.2002703]
[1736588373067,54.22038119,186.35,186.32,2.6842]
[1736588373364,15.2595703,186.38,186.32,9.8844703]
[1736588378474,2.6835,186.37,186.32,9.8844703]
[1736588378667,12.5762703,186.38,186.32,7.2002703]
[1736588379062,9.8838703,186.36,186.28,2.6846]
[1736588379267,7.2002703,186.36,186.29,7.2002703]
[1736588379671,2.6838,186.35,186.29,9.8847703]
[1736588381672,2.6838,186.35,186.29,7.2002703]
[1736588381874,2.6838,186.35,186.3,2.6844]
[1736588383665,9.8838703,186.36,186.31,2.6843]
[1736588383866,9.8838703,186.36,186.31,9.8845703]
[1736588391178,9.8838703,186.36,186.31,2.6843]
[1736588397481,7.2002703,186.36,186.3,7.2002703]
[1736588397779,7.2002703,186.36,186.32,2.6842]
[1736588398082,15.2595703,186.38,186.32,2.6842]
[1736588398382,15.2595703,186.38,186.33,2.684]
[1736588403384,12.5762703,186.38,186.32,7.2002703]
[1736588403585,12.5762703,186.38,186.34,2.6839]
[1736588403880,12.5762703,186.38,186.32,7.2002703]
[1736588404886,12.5762703,186.38,186.33,2.684]
[1736588406188,15.2596703,186.38,186.33,2.684]
[1736588406488,7.2002703,186.36,186.25,4.8329]
[1736588406687,7.2002703,186.34,186.28,7.2002703]
[1736588407493,9.8842703,186.34,186.28,9.8849703]
[1736588407681,154.23979214,186.39,186.3,7.2002703]
[1736588407882,161.44006244,186.37,186.3,7.2002703]
[1736588408491,12.5762703,186.37,186.32,2.6841]
[1736588409286,15.2597703,186.37,186.32,2.6841]
[1736588409890,15.2597703,186.37,186.31,2.6843]
[1736588412190,15.2597703,186.37,186.32,2.6842]
[1736588413397,9.8837703,186.37,186.32,2.6842]
[1736588414901,2.6835,186.37,186.32,2.6842]
[1736588415108,7.2002703,186.38,186.33,2.6839]
[1736588416008,156.92299214,186.39,186.33,2.6839]
[1736588416210,8.0592,186.39,186.33,2.6839]
[1736588416505,8.0592,186.39,186.32,7.2002703]
[1736588416506,9.8836703,186.38,186.32,2.6842]
[1736588417110,7.2002703,186.38,186.32,2.6842]
[1736588417308,2.6835,186.37,186.32,2.6842]
[1736588420114,2.6835,186.37,186.31,2.6843]
[1736588420308,5.376,186.35,186.25,4.8329]
[1736588420509,7.2002703,186.34,186.28,7.2002703]
[1736588421609,2.6841,186.33,186.28,9.8850703]
[1736588422315,7.2002703,186.34,186.25,4.8329]
[1736588422516,2.6843,186.32,186.27,9.8851703]
[1736588423715,2.6843,186.32,186.27,2.6849]
[1736588423916,2.6843,186.32,186.27,9.8851703]
[1736588428323,2.6844,186.31,186.27,7.2002703]
[1736588428524,2.6844,186.31,186.25,9.8852703]
[1736588430223,2.6844,186.31,186.26,2.685]
[1736588434623,2.6844,186.31,186.27,2.6849]
[1736588435430,9.8844703,186.32,186.27,2.6849]
[1736588436427,7.2002703,186.32,186.27,2.6849]
[1736588437932,7.2002703,186.32,186.25,7.2002703]
[1736588438132,7.2002703,186.3,186.25,2.685]
[1736588441830,8.0605,186.31,186.25,2.685]
[1736588442136,7.2002703,186.3,186.25,2.685]
[1736588444234,7.0207,186.34,186.23,2.6853]
[1736588444235,7.2002703,186.28,186.23,2.6853]
[1736588445837,9.8850703,186.28,186.23,2.6853]
[1736588447539,5.376,186.33,186.23,7.2002703]
[1736588447738,7.2002703,186.3,186.23,7.2002703]
[1736588448237,12.5762703,186.3,186.25,2.6852]
[1736588452337,7.2002703,186.3,186.25,2.6852]
[1736588457344,9.8844703,186.32,186.27,2.6849]
[1736588457543,7.2002703,186.33,186.27,7.2002703]
[1736588457745,181.9396848,186.35,186.27,7.2002703]
[1736588458146,8.7426703,186.35,186.27,7.2002703]
[1736588459456,7.2002703,186.33,186.25,7.2002703]
[1736588459747,2.6843,186.32,186.26,2.685]
[1736588460448,7.2002703,186.34,186.27,7.2002703]
[1736588460644,5.376,186.33,186.27,7.2002703]
[1736588461447,8.0601,186.33,186.27,9.8851703]
[1736588461848,7.2002703,186.32,186.27,2.6849]
[1736588463149,9.8845703,186.32,186.26,2.685]
[1736588463346,7.2002703,186.32,186.25,7.2002703]
[1736588463754,2.6844,186.31,186.25,9.8852703]
[1736588464748,9.8844703,186.32,186.26,2.6849]
[1736588467051,7.2002703,186.32,186.23,7.2002703]
[1736588467351,7.2002703,186.28,186.21,5.34221026]
[1736588467552,7.2002703,186.26,186.21,5.34221026]
[1736588468853,7.2002703,186.26,186.21,8.02791026]
[1736588469054,9.8851703,186.28,186.21,12.54248056]
[1736588469252,5.376,186.29,186.23,7.2002703]
[1736588469454,12.6002703,186.3,186.23,7.2002703]
[1736588469855,148.86379214,186.31,186.25,7.2002703]
[1736588470355,8.8403703,186.33,186.25,7.2002703]
[1736588470756,2.6842,186.32,186.27,2.6848]
[1736588471860,2.6842,186.32,186.26,2.685]
[1736588472059,7.2002703,186.31,186.26,2.685]
[1736588472457,2.6842,186.32,186.25,7.2002703]
[1736588472762,2.6842,186.32,186.27,2.6849]
[1736588477666,12.5762703,186.33,186.28,2.6846]
[1736588477858,5.376,186.33,186.28,2.6846]
[1736588478063,2.6839,186.34,186.28,2.6846]
[1736588478864,6.9184,186.35,186.27,7.2002703]
[1736588479062,5.376,186.35,186.29,7.2002703]
[1736588479563,5.376,186.35,186.32,2.6842]
[1736588479766,5.376,186.37,186.31,7.2002703]
[1736588480270,5.376,186.37,186.33,2.684]
[1736588482168,9.8835703,186.38,186.33,2.684]
[1736588483868,7.2002703,186.38,186.33,2.684]
[1736588487865,7.2002703,186.38,186.29,7.2002703]
[1736588488066,7.2002703,186.36,186.3,2.6843]
[1736588489071,2.6837,186.35,186.3,2.6843]
[1736588490573,2.6835,186.37,186.32,2.6841]
[1736588490770,9.8837703,186.37,186.32,2.6841]
[1736588491572,9.8837703,186.37,186.29,7.2002703]
[1736588491770,9.8837703,186.37,186.32,2.6841]
[1736588498377,7.2002703,186.37,186.33,2.684]
[1736588509385,7.2002703,186.37,186.21,10.74221026]
[1736588509677,7.2002703,186.35,186.3,2.6844]
[1736588510684,9.8841703,186.35,186.3,2.6844]
[1736588517690,9.8841703,186.35,186.28,7.2002703]
[1736588517986,9.8841703,186.35,186.31,2.6843]
[1736588518692,7.2002703,186.35,186.31,2.6843]
[1736588519190,12.5762703,186.39,186.3,7.2002703]
[1736588519688,15.2594703,186.39,186.3,7.2002703]
[1736588519986,7.2002703,186.37,186.3,7.2002703]
[1736588520292,7.2002703,186.37,186.33,2.6839]
[1736588521893,2.6833,186.38,186.33,2.6839]
[1736588522290,7.2002703,186.37,186.33,2.6839]